Cogmind - Beta 17 @@@ ROGUE MODE // 2026.08.19 @ 02:43:06 Player: Clog Result: Destroyed by P-60 Hacker with Shock Rifle Performance ------------- Evolutions (4) 2000 Regions Visited (10) 2000 Robots Destroyed (125) 625 Value Destroyed (5896) 5896 Prototype IDs (6) 120 Alien Tech Used (0) 0 Bonus (9310) 9310 TOTAL SCORE: 19951 Bonus ------- High Alert Combat Kills 820 Follower Combat Kills 585 Prayed to X0-1V1 5000 Major X0-1V1 Interference 750 Entered Garrisons 800 Used RIF Installer 1500 Friendly Fire -145 Cogmind --------- Core Integrity 0/600 Matter 85/700 Energy 1500/1500 System Corruption 27% Temperature Cool (2) Movement Hovering (80) Location -6/Garrison Parts ------- > --- POWER (2) -------- (None) > --- PROPULSION (5) --- Combat Airjet > --- UTILITY (7) ------ Improved Signal Interpreter > --- WEAPON (2) ------- (None) > --- INVENTORY (5) ---- Light Nuclear Core Medium Treads Relay Coupler [Grunt] (99) Peak State ------------ > --- POWER ------------ Light Nuclear Core > --- PROPULSION ------- Airjet Gravmag System Combat Airjet Combat Airjet Combat Airjet > --- UTILITY ---------- Advanced Cooling System Energy Well Sensor Array Improved Signal Interpreter Transport Network Coupler Experimental Propulsion Shielding X0-1V1's Piety Tracker > --- WEAPON ----------- Mini Assault Cannon Mini Assault Cannon > --- INVENTORY -------- Light Nuclear Core Medium Treads Medium Treads Relay Coupler [Grunt] Blade Saw [Rating: 71] Favorites ----------- Power Light Ion Engine Engine Light Ion Engine Power Core Light Nuclear Core Propulsion Light Treads Treads Light Treads Leg Carbon-fiber Leg Hover Unit Combat Airjet Utility Small Storage Unit Device Seismic Detector Storage Small Storage Unit Processor Improved Signal Interpreter Protection Powered Armor Weapon Assault Rifle Energy Gun Small Laser Ballistic Gun Assault Rifle Ballistic Cannon Improved Light Cannon Launcher Missile Launcher Special Weapon Mining Laser Slashing Weapon Blade Saw Build | -11 -10 -10 -8 -8 -7 -7 -6 -6 -6 -6 ------- Run | Yrd Mat Sub Mat Gar Fac Gar Fac Gar Fac Gar Slots Evolved 8 | . . . 4 . 2 . 2 . . . Power 1 | . . . . . . . 1 . . . Propulsion 2 | . . . 1 . . . 1 . . . Utility 4 | . . . 3 . 1 . . . . . Weapon 1 | . . . . . 1 . . . . . Parts Attached 91 | 9 10 . 19 9 7 11 1 14 9 2 Power 7 | 2 2 . 1 . 1 . . 1 . . Engine 6 | 2 2 . 1 . 1 . . . . . Core 1 | . . . . . . . . 1 . . Reactor . | . . . . . . . . . . . Propulsion 31 | 2 2 . 7 4 5 2 1 5 1 2 Treads 19 | 2 2 . 7 4 . 2 . . . 2 Leg 5 | . . . . . . . . 5 . . Wheel . | . . . . . . . . . . . Hover 7 | . . . . . 5 . 1 . 1 . Flight . | . . . . . . . . . . . Utility 25 | 2 2 . 5 2 . 4 . 4 6 . Device 12 | 1 . . 2 . . 3 . 3 3 . Storage 3 | 1 1 . . . . . . . 1 . Processor 3 | . 1 . 1 . . . . . 1 . Hackware . | . . . . . . . . . . . Protection 7 | . . . 2 2 . 1 . 1 1 . Artifact . | . . . . . . . . . . . Weapon 28 | 3 4 . 6 3 1 5 . 4 2 . Energy Gun 5 | 1 . . 1 1 . 1 . 1 . . Energy Cannon . | . . . . . . . . . . . Ballistic Gun 12 | 2 2 . 2 . 1 2 . 3 . . Ballistic Cannon 5 | . . . 2 1 . . . . 2 . Launcher 4 | . 1 . 1 1 . 1 . . . . Special Weapon 1 | . 1 . . . . . . . . . Impact Weapon . | . . . . . . . . . . . Slashing Weapon 1 | . . . . . . 1 . . . . Piercing Weapon . | . . . . . . . . . . . Special Melee Weapon . | . . . . . . . . . . . Unidentified Prototypes 6 | . . . 4 . . . . . 2 . Parts Lost 49 | 2 . . 4 4 . 8 . 18 . 13 Power 4 | 1 . . . . . . . 2 . 1 Propulsion 15 | . . . 1 3 . 2 . 4 . 5 Utility 14 | . . . 1 . . 3 . 5 . 5 Weapon 16 | 1 . . 2 1 . 3 . 7 . 2 Highest Loss Streak 12 | 1 . . 3 3 . 4 . 6 . 12 To Critical Strikes . | . . . . . . . . . . . Average Backups 8 | 5 14 15 13 14 13 13 13 12 5 3 Power 1 | . 1 1 1 1 1 1 1 1 1 1 Propulsion 4 | 3 3 3 5 6 7 7 5 4 1 1 Utility 1 | . 2 4 . . 1 2 3 2 1 1 Weapon 2 | . 7 7 6 5 4 3 4 3 1 . Tool/Special . | . . . . . . . . . . . Unused Backups 18 | . 4 . 6 4 . . . 1 1 2 Power 4 | . 1 . 2 . . . . . . 1 Propulsion 3 | . 2 . . . . . . 1 . . Utility 3 | . . . . 2 . . . . . 1 Weapon 8 | . 1 . 4 2 . . . . 1 . Tool/Special . | . . . . . . . . . . . Average Slot Usage (%) 92 | . 100 100 97 92 84 92 92 85 78 53 Engine 8 | . 14 14 9 8 7 7 6 5 . . Treads 19 | . 28 28 24 24 1 22 2 . . 1 Hover 5 | . . . . . 26 1 27 23 27 18 Device 15 | . 8 . 17 16 14 19 18 16 17 10 Storage 8 | . 14 14 9 8 7 7 6 5 . . Processor 7 | . 5 14 9 8 7 7 6 6 10 8 Protection 5 | . . . 8 8 7 7 6 3 3 2 Energy Gun 2 | . . . . . 6 9 6 6 . . Ballistic Gun 12 | . 27 26 10 8 7 9 12 9 1 . Ballistic Cannon 3 | . . . 7 8 . . . . 8 6 Peak Build Rating 71 | 8 14 14 37 41 49 47 58 61 71 66 Average Rating 19 | 7 12 13 33 38 48 42 56 54 55 43 On Entrance 32 | . 8 14 14 37 40 49 45 58 28 66 Avg Prop Armor Cover (%) 2 | . . . . . . 2 . . . . Naked Turns . | . . . . . . . . . . . Heaviest Build 52 | 12 34 33 40 47 46 50 44 52 19 18 Greatest Support 85 | 40 40 40 62 85 37 83 47 80 53 56 Greatest Overweight (x) 2 | . . . 1 2 1 . . 1 . . Average Overweight (x) . | . . . . . 1 . . . . . Largest Inventory Capacity 15 | 8 15 15 15 15 15 15 15 15 5 5 Average Capacity 10 | 7 14 15 15 15 15 15 15 14 5 5 Most Carried 15 | 7 15 15 15 15 15 15 14 15 5 5 Average Carried 8 | 5 14 15 13 13 13 14 13 12 4 3 Final Capacity 15 | 8 15 15 15 15 15 15 15 5 5 5 Final Carried 15 | 7 15 15 15 15 13 15 14 5 5 3 Class Distribution -------------------- 83% | Mutant 7% | Scavenger-Skirmisher 5% | Scavenger-Mutant Dominant Class ---------------- Mutant | -10/Materials Mutant | -10/Subcaves Mutant | -8/Materials Mutant | -8/Garrison Mutant | -7/Factory Scavenger-Skirmisher | -7/Garrison Scavenger-Skirmisher | -6/Factory Scavenger-Skirmisher | -6/Garrison Scavenger-Scout | -6/Factory Mutant | -6/Garrison Resources | -11 -10 -10 -8 -8 -7 -7 -6 -6 -6 -6 ----------- Run | Yrd Mat Sub Mat Gar Fac Gar Fac Gar Fac Gar Matter Collected 3996 | 380 304 105 1065 1025 . 257 118 499 109 134 Remotely . | . . . . . . . . . . . Salvage Created 3832 | 70 359 78 1176 799 . 375 124 664 109 78 Parts 231 | 1 33 7 69 57 . 14 7 32 3 8 Haulers Intercepted 6 | . 1 . 4 . . . . . 1 . Recyclers Shooed 5 | . . . 4 . . . . . 1 . Parts Field Recycled . | . . . . . . . . . . . Retrieved Matter . | . . . . . . . . . . . Parts Self-Destructed 11 | . . 11 . . . . . . . . Prevented . | . . . . . . . . . . . Parts Restored . | . . . . . . . . . . . Kills | -11 -10 -10 -8 -8 -7 -7 -6 -6 -6 -6 ------- Run | Yrd Mat Sub Mat Gar Fac Gar Fac Gar Fac Gar Combat Hostiles Destroyed 113 | 8 13 2 24 29 . 9 2 21 . 5 Melee 1 | . . . . . . . . . . 1 Guns 59 | 8 10 2 8 12 . 6 2 11 . . Cannons 30 | . . . 12 14 . . . . . 4 AOE 22 | . 3 . 4 3 . 3 . 9 . . Classes Destroyed 19 | 2 5 1 5 3 . . . 3 . . Worker 2 | 1 . . 1 . . . . . . . Builder 2 | . . . 2 . . . . . . . Hauler 6 | . 1 . 4 . . . . . 1 . Recycler 2 | . . . 2 . . . . . . . Operator 1 | . 1 . . . . . . . . . Watcher 6 | . 2 . 4 . . . . . . . Swarmer 39 | . 9 . 7 13 . 2 . 4 . 4 Cutter 4 | . . . . . . . . 4 . . Grunt 29 | . 4 . 12 2 . 3 1 7 . . Brawler 3 | . . . 1 1 . . . 1 . . Duelist 1 | . . . . 1 . . . . . . Protector 1 | . . . . . . . . 1 . . Sentry 14 | . . . 3 6 . 3 1 1 . . Demolisher 1 | . . . . . . . . 1 . . Specialist 3 | . . . . 3 . . . . . . Hunter 5 | . . . 1 . . 1 . 2 . 1 Programmer 3 | . . . . 3 . . . . . . Subdweller 2 | . . 2 . . . . . . . . Assembled 8 | 8 . . . . . . . . . . Infiltrator 1 | . . . . . . . . 1 . . Best Kill Streak 9 | 2 5 1 9 5 . 4 2 4 1 5 Combat Bots Only 6 | 2 5 1 6 5 . 4 2 4 . 5 Max Kills in Single Turn 3 | 1 3 1 2 3 . 2 1 3 1 1 Gunslinging 1 | . 1 . . . . . . . . . Exploded 3 | . 3 . 2 3 . 2 . 3 . . Melee 1 | . . . . . . . . . . 1 Uniques/NPCs Destroyed . | . . . . . . . . . . . Combat | -11 -10 -10 -8 -8 -7 -7 -6 -6 -6 -6 -------- Run | Yrd Mat Sub Mat Gar Fac Gar Fac Gar Fac Gar Hostile Shots Fired 847 | 26 47 12 106 176 . 138 22 183 18 119 Missed 284 | 10 13 5 36 57 . 44 11 65 11 32 Hits 563 | 16 34 7 70 119 . 94 11 118 7 87 Melee 9 | 5 . . . . . 1 . 3 . . Projectile 554 | 11 34 7 70 119 . 93 11 115 7 87 AOE 15 | . . . . . . 1 . 14 . . Critical Strikes 20 | . . 1 7 3 . 2 . 5 . 2 Actively Blocked 1 | . . . . . . . . . . 1 Damage Taken 8260 | 314 383 122 900 1624 79 1072 71 2085 131 1479 Core 1255 | 37 54 10 160 210 . 177 6 229 9 363 Absorbed by Shields 127 | . . . . . . . . 111 . 16 Redirected to Shielding 151 | . . . . . . . . . 46 105 Ignored by Resistances 376 | . . 11 100 56 . 66 2 128 5 8 Core Remaining (%) 77 | 85 . 93 . 73 . 60 . . . . Volleys Fired 365 | 26 36 9 99 83 . 27 6 56 8 15 Largest 3 | 2 2 2 2 2 . 3 3 3 2 2 Hottest 183 | 60 100 100 100 113 . 183 131 183 80 80 Shots Fired 744 | 51 68 15 189 165 . 71 16 139 16 14 Gun 552 | 51 65 12 128 82 . 69 16 129 . . Cannon 164 | . . . 52 82 . . . . 16 14 Launcher 19 | . 1 . 5 1 . 2 . 10 . . Special 9 | . 2 3 4 . . . . . . . Kinetic 623 | 48 65 12 180 159 . 35 12 82 16 14 Thermal 102 | 3 2 3 4 5 . 34 4 47 . . Explosive 19 | . 1 . 5 1 . 2 . 10 . . Electromagnetic . | . . . . . . . . . . . Robot Hit Streak 17 | 6 8 5 15 16 . 17 8 10 5 3 Robot Miss Streak 8 | 3 3 3 8 3 . 7 2 6 2 3 Penetration Max . | . . . . . . . . . . . Secondary Targets 6 | 1 1 . 1 . . 2 . 1 . . Max Gunslinging Chain 1 | 1 1 . 1 . . 1 . 1 . . Shots Hit Robots 443 | 31 41 7 103 99 . 35 12 96 12 7 Core Hits 280 | 16 20 4 64 43 . 31 7 83 3 9 Critical Kills . | . . . . . . . . . . . Critical Parts Destroyed 2 | . 2 . . . . . . . . . Critical Strikes 12 | . 2 1 2 2 . . . 1 3 1 Destroy 3 | . 2 1 . . . . . . . . Blast 5 | . . . 2 2 . . . . . 1 Sever 4 | . . . . . . . . 1 3 . Melee Attacks 13 | . . . . . . . 1 3 8 1 Impact . | . . . . . . . . . . . Slashing 13 | . . . . . . . 1 3 8 1 Piercing . | . . . . . . . . . . . Sneak Attacks 1 | . . . . . . . . . 1 . Combat Hostiles . | . . . . . . . . . . . Follow-up Attacks . | . . . . . . . . . . . Damage Inflicted 10215 | 329 739 105 2391 2039 . 1136 213 2727 270 266 Guns 5613 | 328 619 105 1139 803 . 733 213 1673 . . Cannons 2169 | . . . 763 1048 . . . . 110 248 Explosions 2218 | . 120 . 485 188 . 403 . 1022 . . Melee 192 | . . . . . . . . 32 160 . Ramming 23 | 1 . . 4 . . . . . . 18 Kinetic 6283 | 317 619 105 1902 1760 . 273 139 810 110 248 Thermal 1499 | 11 . . . 91 . 460 74 863 . . Explosive 2218 | . 120 . 485 188 . 403 . 1022 . . Electromagnetic . | . . . . . . . . . . . Impact . | . . . . . . . . . . . Slashing 192 | . . . . . . . . 32 160 . Piercing . | . . . . . . . . . . . Highest Corruption 40 | . . . . . . 4 . 40 40 27 Average Corruption 24 | . . . . . . 4 . 25 31 27 Corruption Purged . | . . . . . . . . . . . Corruption Blocked . | . . . . . . . . . . . Effects 74 | . . . . . . 2 . 44 14 14 Message Errors 12 | . . . . . . . . 9 1 2 Matter Fused 8 | . . . . . . . . 5 1 2 Heat Flow Errors 3 | . . . . . . . . 2 1 . Energy Discharges 11 | . . . . . . . . 7 3 1 Parts Rejected 1 | . . . . . . . . . . 1 Data Loss (minor) 9 | . . . . . . . . 7 2 . Data Loss (major) 7 | . . . . . . 1 . 1 4 1 Misfires 4 | . . . . . . 1 . 2 1 . Misdirections 7 | . . . . . . . . 3 1 3 Weapon Failures 12 | . . . . . . . . 8 . 4 Overload Shots . | . . . . . . . . . . . Overflow Damage 127 | . 18 . 46 21 . 42 . . . . Projectiles 5 | . . . . 5 . . . . . . Explosions 122 | . 18 . 46 16 . 42 . . . . Melee . | . . . . . . . . . . . Knockbacks 25 | . . . 5 18 . . . . 2 . Impact . | . . . . . . . . . . . Kinetic 20 | . . . 5 13 . . . . 2 . Secondary 5 | . . . . 5 . . . . . . Self-Inflicted Damage 202 | . . . . . . 54 . 144 . 4 Shots 5 | . . . . . . 2 . 3 . . Rammed 7 | . . . 1 . . . . . . 6 Targets Rammed 8 | 1 . . 1 . . . . . . 6 Kicked . | . . . . . . . . . . . Crushed 1 | 1 . . . . . . . . . . Highest Temperature 321 | . 71 . 64 235 . 321 18 129 61 . Average Temperature 37 | . 18 . 13 41 . 115 12 39 39 . Received Heat Transfer 1885 | . 114 30 576 270 . 288 9 544 18 36 Effects 1 | . . . . . . 1 . . . . Interference 1 | . . . . . . 1 . . . . Siege Activations . | . . . . . . . . . . . Martial Activations . | . . . . . . . . . . . Shielding Activations . | . . . . . . . . . . . Robots Disrupted . | . . . . . . . . . . . Combat Hostiles . | . . . . . . . . . . . Robots Corrupted . | . . . . . . . . . . . Combat Hostiles . | . . . . . . . . . . . Parts Fried 1 | . . . . 1 . . . . . . Impact Corruptions 1 | . . . . 1 . . . . . . Robots Melted 1 | . . . . . . . . 1 . . Combat Hostiles 1 | . . . . . . . . 1 . . Parts Melted 9 | . . . . . . 3 . 6 . . Heat Transferred 3040 | 25 . . . 200 . 1050 175 1590 . . Parts Sabotaged . | . . . . . . . . . . . Parts Stolen . | . . . . . . . . . . . Parts Stripped . | . . . . . . . . . . . Power Chain Reactions . | . . . . . . . . . . . Alert | -11 -10 -10 -8 -8 -7 -7 -6 -6 -6 -6 ------- Run | Yrd Mat Sub Mat Gar Fac Gar Fac Gar Fac Gar Maximum Alert Level 4 | . . . 1 4 2 3 2 3 2 1 Low Security (%) 73 | 100 100 . 90 2 . . . . . . Level 1 3 | . . . 9 13 . 9 . . . 100 Level 2 10 | . . . . 45 100 18 100 20 100 . Level 3 12 | . . . . 34 . 72 . 79 . . Level 4 . | . . . . 3 . . . . . . Level 5 . | . . . . . . . . . . . High Security . | . . . . . . . . . . . Max Security . | . . . . . . . . . . . Peak Influence 1130 | 5 139 . 238 1130 592 1008 613 1081 548 347 Initial 592 | . . . . 47 592 358 529 429 548 347 Average 184 | . 17 . 77 626 552 747 538 802 516 325 Influence Increases 4227 | 5 380 . 705 1223 . 770 154 816 79 95 Destroy 0b10 Robot/C 2395 | . 260 . 480 660 . 380 80 460 . 75 Destroy 0b10 Robot/NC 99 | 5 20 . 65 . . . . 5 4 . Destroy Leader 250 | . 46 . 106 20 . 10 30 28 2 8 Allied During Kill 188 | . . . . 17 . 132 28 11 . . Successful Hack 88 | . 35 . 2 . . 42 . . 9 . Disable Machine 30 | . 15 . 15 . . . . . . . Anti-Garrison Action 800 | . . . . 450 . 150 . 200 . . Destroy Structure 179 | . 4 . 22 46 . 26 1 76 4 . Partial Spotted 12 | . . . . . . . . . 12 . Lose Combat Pursuer 186 | . . . 15 30 . 30 15 36 48 12 Influence Decreases 3915 | 5 380 . 632 166 618 274 549 384 627 280 Entered New Map 2028 | . . . . 26 538 154 479 184 497 150 Time Decay 927 | 5 240 . 442 . 80 . 30 . 130 . Lost Part 470 | . . . 40 40 . 80 . 180 . 130 Lost Ally 200 | . . . . 100 . 40 40 20 . . Purge Threat 290 | . 140 . 150 . . . . . . . Squads Dispatched 5 | . . . 2 . . . 1 . 2 . Investigation 2 | . . . 1 . . . . . 1 . Extermination . | . . . . . . . . . . . Reinforcement 2 | . . . 1 . . . . . 1 . Assault . | . . . . . . . . . . . Garrison 1 | . . . . . . . 1 . . . Intercept . | . . . . . . . . . . . Searches Triggered . | . . . . . . . . . . . Construction Impeded . | . . . . . . . . . . . Haulers Reinforced 1 | . . . . . . . . . 1 . Active Scanning Responses . | . . . . . . . . . . . Cargo Convoy Interrupts . | . . . . . . . . . . . Stealth | -11 -10 -10 -8 -8 -7 -7 -6 -6 -6 -6 --------- Run | Yrd Mat Sub Mat Gar Fac Gar Fac Gar Fac Gar Distress Signals 4 | . . . 4 . . . . . . . Communications Jammed . | . . . . . . . . . . . Distress Signals . | . . . . . . . . . . . Times Spotted 183 | 9 18 5 40 35 . 19 4 32 4 17 Peak Tracking Total 13 | 2 4 3 6 6 . 13 3 5 3 11 Tactical Retreats 11 | 1 . . 1 1 . 1 1 3 2 1 Traps | -11 -10 -10 -8 -8 -7 -7 -6 -6 -6 -6 ------- Run | Yrd Mat Sub Mat Gar Fac Gar Fac Gar Fac Gar Traps Triggered 11 | . 2 . . 4 1 . . 2 2 . Indirectly . | . . . . . . . . . . . Trap Hack Attempts . | . . . . . . . . . . . Triggered . | . . . . . . . . . . . Disarmed . | . . . . . . . . . . . Reprogrammed . | . . . . . . . . . . . Reused . | . . . . . . . . . . . Traps Extracted . | . . . . . . . . . . . Installed . | . . . . . . . . . . . Triggered . | . . . . . . . . . . . Most Traps Carried 1 | . . . . . . 1 . . . . Machines | -11 -10 -10 -8 -8 -7 -7 -6 -6 -6 -6 ---------- Run | Yrd Mat Sub Mat Gar Fac Gar Fac Gar Fac Gar Machines Disabled 12 | . 1 . 1 3 . 3 . 4 . . Max in Single Turn 1 | . 1 . 1 1 . 1 . 1 . . Garrison Relay 10 | . . . . 3 . 3 . 4 . . Machines Repaired . | . . . . . . . . . . . Machines Dismantled . | . . . . . . . . . . . Machines Sabotaged . | . . . . . . . . . . . Overloaded Fab Kills . | . . . . . . . . . . . Hacking | -11 -10 -10 -8 -8 -7 -7 -6 -6 -6 -6 --------- Run | Yrd Mat Sub Mat Gar Fac Gar Fac Gar Fac Gar Machines Accessed 25 | . 5 . 6 2 1 4 1 2 4 . Terminals 19 | . 5 . 4 2 . 4 . 2 2 . Fabricators . | . . . . . . . . . . . Repair Stations 1 | . . . . . . . . . 1 . Recycling Units . | . . . . . . . . . . . Scanalyzers 1 | . . . 1 . . . . . . . Garrison Access 4 | . . . 1 . 1 . 1 . 1 . Total Hacks 63 | . 20 . 14 2 2 6 1 3 15 . Successful 25 | . 11 . 5 . 2 3 1 . 3 . Failed 37 | . 9 . 8 2 . 3 . 3 12 . Catastrophic 12 | . 2 . 3 1 . 1 . 2 3 . Database Lockouts 1 | . . . 1 . . . . . . . Manual 35 | . 21 . 7 1 . 1 . . 5 . Terminals 45 | . 20 . 7 2 . 6 . 3 7 . Fabricators . | . . . . . . . . . . . Repair Stations 6 | . . . . . . . . . 6 . Recycling Units . | . . . . . . . . . . . Scanalyzers 6 | . . . 6 . . . . . . . Garrison Access 6 | . . . 1 . 2 . 1 . 2 . Terminal Hacks 6 | . 2 . 1 . . 3 . . . . Emergency Access Points 1 | . . . . . . 1 . . . . Unreport Threat 3 | . 2 . 1 . . . . . . . Garrison Registry 1 | . . . . . . 1 . . . . Patrol Navigation 1 | . . . . . . 1 . . . . Fabricator Hacks . | . . . . . . . . . . . Repair Station Hacks 1 | . . . . . . . . . 1 . Scan Component 1 | . . . . . . . . . 1 . Recycling Unit Hacks . | . . . . . . . . . . . Scanalyzer 3 | . . . 3 . . . . . . . Retrieve Study 3 | . . . 3 . . . . . . . Garrison Access Hacks 6 | . . . 1 . 2 . 1 . 2 . Unlock Access 4 | . . . 1 . 1 . 1 . 1 . Coupler Status 2 | . . . . . 1 . . . 1 . Unauthorized Hacks 9 | . 9 . . . . . . . . . Terminals 9 | . 9 . . . . . . . . . Botnet 4 | . 4 . . . . . . . . . Skim 5 | . 5 . . . . . . . . . Fabricators . | . . . . . . . . . . . Repair Stations . | . . . . . . . . . . . Recycling Units . | . . . . . . . . . . . Scanalyzers . | . . . . . . . . . . . Garrison Access . | . . . . . . . . . . . Data Cores Recovered 1 | . 1 . . . . . . . . . Used . | . . . . . . . . . . . Hacking Detections 24 | . 5 . 5 2 1 4 1 2 4 . Full Trace Events 2 | . . . 1 . . . . . 1 . Feedback Events . | . . . . . . . . . . . Feedback Blocked . | . . . . . . . . . . . Robot Schematics Acquired . | . . . . . . . . . . . Robots Built . | . . . . . . . . . . . Authchips . | . . . . . . . . . . . Time . | . . . . . . . . . . . Total Robot Build Rating . | . . . . . . . . . . . Part Schematics Acquired . | . . . . . . . . . . . Parts Built . | . . . . . . . . . . . Authchips . | . . . . . . . . . . . Time . | . . . . . . . . . . . Total Part Build Rating . | . . . . . . . . . . . Part Studies Acquired 3 | . . . 3 . . . . . . . Parts Repaired . | . . . . . . . . . . . Time . | . . . . . . . . . . . Parts Recycled . | . . . . . . . . . . . Recycled Matter . | . . . . . . . . . . . Retrieved Matter . | . . . . . . . . . . . Retrieved Components . | . . . . . . . . . . . Parts Scanalyzed . | . . . . . . . . . . . Part Schematics Acquired . | . . . . . . . . . . . Parts Damaged . | . . . . . . . . . . . Bothacking | -11 -10 -10 -8 -8 -7 -7 -6 -6 -6 -6 ------------ Run | Yrd Mat Sub Mat Gar Fac Gar Fac Gar Fac Gar Used RIF Installer 3 | . . . . 1 . 1 . 1 . . Threat Obfuscator 1 | . . . . . . . . 1 . . Structural Interface 1 | . . . . . . 1 . . . . Robots Hacked . | . . . . . . . . . . . Non-combat . | . . . . . . . . . . . Combat . | . . . . . . . . . . . Robot Hacks Applied . | . . . . . . . . . . . Relay Couplers Released 36 | . . . . 9 . 10 . 17 . . Machine Destruction 36 | . . . . 9 . 10 . 17 . . Fabnet Peak Effective % . | . . . . . . . . . . . Robots Rewired 6 | . . . . 6 . . . . . . Allies Hacked 1 | . . . . 1 . . . . . . Hacks Repelled . | . . . . . . . . . . . Allies | -11 -10 -10 -8 -8 -7 -7 -6 -6 -6 -6 -------- Run | Yrd Mat Sub Mat Gar Fac Gar Fac Gar Fac Gar Total Allies 16 | . . 2 . 7 . 7 . . . . Largest Group 7 | . . 2 . 4 . 7 4 2 . . Highest-Rated Group 270 | . . 16 . 165 . 270 213 175 . . Highest-Rated Ally 116 | . . 8 . 116 . 95 95 95 . . Total Orders . | . . . . . . . . . . . Ally Attacks 114 | . . 8 . 29 . 57 13 7 . . Total Damage 1949 | . . 76 . 422 . 660 394 397 . . Kills 21 | . . . . 4 . 11 2 4 . . Allies Corrupted . | . . . . . . . . . . . Allies Melted . | . . . . . . . . . . . X0-1V1 Amusement Gains 116 | . 10 . . 20 5 30 . 20 . 31 Good Acts 44 | . . 3 4 18 1 6 1 . 6 5 Bad Acts 17 | . . 2 1 3 . 1 . 10 . . Intel | -11 -10 -10 -8 -8 -7 -7 -6 -6 -6 -6 ------- Run | Yrd Mat Sub Mat Gar Fac Gar Fac Gar Fac Gar Active Infowar (turns) 16432 | 9391 862 . 1326 2166 177 1164 69 961 261 55 Sensors 6170 | . . . 1326 2166 177 1164 69 961 261 46 Seismic 10253 | 9391 862 . . . . . . . . . T.N.C. 246 | . . . . . . . . . 191 55 Robot Analysis Total . | . . . . . . . . . . . Derelict Logs Recovered . | . . . . . . . . . . . Drone Launches . | . . . . . . . . . . . Drone Recoveries . | . . . . . . . . . . . Exploration | -11 -10 -10 -8 -8 -7 -7 -6 -6 -6 -6 ------------- Run | Yrd Mat Sub Mat Gar Fac Gar Fac Gar Fac Gar Turns Passed 18953 | 11066 1365 244 1328 2166 177 1164 69 961 261 152 Spaces Moved 6156 | 1453 742 132 596 1108 143 650 47 807 335 143 Core 8 | 8 . . . . . . . . . . Treads 4676 | 1445 742 132 596 1108 . 650 . . . 3 Legs 119 | . . . . . . . . 119 . . Wheels . | . . . . . . . . . . . Hover 1353 | . . . . . 143 . 47 688 335 140 Flight . | . . . . . . . . . . . Fastest Speed 50 | 50 160 160 155 152 115 160 53 53 58 58 Average Speed 141 | 159 160 160 159 163 115 160 53 87 58 69 Slowest Speed 305 | 160 160 160 240 305 115 160 53 124 59 160 Overloaded Moves . | . . . . . . . . . . . Propulsion Burnouts . | . . . . . . . . . . . Robots Hopped . | . . . . . . . . . . . Potential Cave-ins 2 | 2 . . . . . . . . . . Cave-ins Triggered . | . . . . . . . . . . . Exploration Rate (%) 44 | 67 90 10 59 83 3 59 2 76 12 32 Regions Visited 10 Branch Regions 1 Pre-discovered Areas 1 | . 1 . . . . . . . . . Known Exits Taken 6 | . 1 1 1 . 1 . 1 . 1 . Unknown Exits Taken 1 | 1 . . . . . . . . . . Scrap Searched . | . . . . . . . . . . . Spaces Dug 8 | . . . 4 . . . . . 4 . Terrain Destroyed 129 | . 3 . 23 9 . 17 . 73 4 . Melee . | . . . . . . . . . . . Projectile 8 | . . . 4 . . . . . 4 . AOE 121 | . 3 . 19 9 . 17 . 73 . . Terrain Rammed . | . . . . . . . . . . . Walls Destroyed . | . . . . . . . . . . . Machines Disabled . | . . . . . . . . . . . Actions | -11 -10 -10 -8 -8 -7 -7 -6 -6 -6 -6 --------- Run | Yrd Mat Sub Mat Gar Fac Gar Fac Gar Fac Gar Total 15702 | 10156 865 144 802 1309 154 713 73 945 368 173 Wait 8787 | 8652 43 . 41 20 . 4 11 14 . 2 Move 6147 | 1452 741 131 596 1106 142 649 47 805 335 143 Hop . | . . . . . . . . . . . Pick Up 96 | 16 18 . 21 12 1 11 1 13 3 . Fast Attach 13 | . 1 . . 2 . 2 . 1 7 . Attach 55 | 9 2 . 8 5 2 8 2 14 2 3 Detach 5 | . 1 . . 1 2 . . . . 1 Swap 74 | . 9 4 19 8 6 8 5 13 1 1 Drop 59 | . 14 . 17 11 1 2 . 10 4 . Fire 365 | 26 36 9 99 83 . 27 6 56 8 15 Melee 13 | . . . . . . . 1 3 8 1 Ram 1 | . . . . . . . . . . 1 Kick . | . . . . . . . . . . . Crush 7 | 1 . . 1 . . . . . . 5 Escape Stasis 16 | . . . . . . 2 . 14 . . Rewire 64 | . . . . 61 . . . 2 . 1 Trap . | . . . . . . . . . . . Miscellaneous . | . . . . . . . . . . . Route ------- -11/Scrapyard -10/Materials (discovered 6 exits: *Mat x3 / *Min x2 / *Sub) -10/Subcaves (discovered 2 exits: *Mat x2) -8/Materials (discovered 2 exits: *Fac / Gar) -8/Garrison (discovered 3 exits: *Fac x3) -7/Factory (discovered 2 exits: *Fac / Gar) -7/Garrison (discovered 4 exits: *Fac x3 / [Fac]) -6/Factory -6/Garrison (discovered 2 exits: *Fac x2) -6/Factory (discovered 2 exits: *Fac / Gar) -6/Garrison (discovered 2 exits: Fac x2) History --------- Turn | Location | Event 8 | -11/Scrapyard | Discovered new exit (range 15) 1011 | -11/Scrapyard | Assembled infested the area 11067 | -11/Scrapyard | Entered Materials 11068 | -10/Materials | Build established: Mutant 11306 | -10/Materials | Discovered new exit (range 8) 11584 | -10/Materials | Discovered new exit (range 10) 11783 | -10/Materials | Discovered new exit (range 14) 11839 | -10/Materials | Discovered new exit (range 15) 11945 | -10/Materials | Discovered new exit (range 9) 11958 | -10/Materials | Identified exit to Mines 11988 | -10/Materials | Identified exit to Subcaves 12012 | -10/Materials | Identified exit to Materials 12019 | -10/Materials | Learned Storage garrison access intel 12053 | -10/Materials | Learned Recycling recycling unit intel 12056 | -10/Materials | Learned Recycling recycling unit intel 12122 | -10/Materials | Learned Storage emergency access door positions 12423 | -10/Materials | Prayed at D.C.S.S. Altar Unit 12432 | -10/Materials | Entered Subcaves 12433 | -10/Subcaves | Shifting Twisted Machinery released Sub. Power Source 12433 | -10/Subcaves | Approached by a straggling Scientist 12433 | -10/Subcaves | Identified exit to Materials 12437 | -10/Subcaves | TH resistance permanently improved by X0-1V1 (+10%; -100 max core) 12637 | -10/Subcaves | X0-1V1 sent hostile G-34 Mercenary (x3) 12645 | -10/Subcaves | X0-1V1 sent allied G-34 Mercenary (x2) 12676 | -10/Subcaves | Entered Materials 12676 | -8/Materials | Evolved 4 slots: Propulsion x1, Utility x3 12979 | -8/Materials | Lost 3 parts (1u2w) 13332 | -8/Materials | Discovered new exit (range 11) 13354 | -8/Materials | Identified exit to Factory 13417 | -8/Materials | Central database locked down 13562 | -8/Materials | Energy generation permanently improved by X0-1V1 (+15; -150 max core) 13681 | -8/Materials | Build established: Scavenger-Mutant 14004 | -8/Materials | Identified exit to Garrison 14004 | -8/Materials | Entered Garrison 14072 | -8/Garrison | X0-1V1 sent allied B-86 Titan (x1) 14136 | -8/Garrison | Build established: Mutant 14144 | -8/Garrison | X0-1V1 opened Sealed Heavy Doors 14215 | -8/Garrison | Found Powered Armor 14220 | -8/Garrison | Found Powered Armor 14242 | -8/Garrison | Core integrity restored by X0-1V1 (+66) 14342 | -8/Garrison | Triggered checkpoint 14353 | -8/Garrison | Garrison Relay disabled 14424 | -8/Garrison | Triggered checkpoint 14710 | -8/Garrison | Triggered checkpoint 14736 | -8/Garrison | Triggered checkpoint 14771 | -8/Garrison | X0-1V1 whisked you away to safety 14855 | -8/Garrison | X0-1V1 activates XOMVISION 14886 | -8/Garrison | Propulsion slot count permanently improved by X0-1V1 (+1) 14924 | -8/Garrison | Discovered exit to Factory (range 12) 15110 | -8/Garrison | Lost 3 parts (2n1w) 15310 | -8/Garrison | Discovered exit to Factory (range 8) 15374 | -8/Garrison | Triggered checkpoint 15408 | -8/Garrison | Core integrity restored by X0-1V1 (+75) 15512 | -8/Garrison | Garrison Relay disabled 15652 | -8/Garrison | Discovered exit to Factory (range 9) 15667 | -8/Garrison | Installed Relay Interface Framework 15843 | -8/Garrison | Found Powered Armor 15982 | -8/Garrison | Triggered checkpoint 16029 | -8/Garrison | X0-1V1 activates XOMVISION 16044 | -8/Garrison | Garrison Relay disabled 16170 | -8/Garrison | Entered Factory 16170 | -7/Factory | Evolved 2 slots: Utility x1, Weapon x1 16197 | -7/Factory | Discovered new exit (range 9) 16208 | -7/Factory | Identified exit to Factory 16346 | -7/Factory | Identified exit to Garrison 16347 | -7/Factory | Entered Garrison 16399 | -7/Garrison | Triggered checkpoint 16454 | -7/Garrison | Garrison Relay disabled 16627 | -7/Garrison | Triggered checkpoint 16640 | -7/Garrison | X0-1V1 sent allied Ranger (x5) 16679 | -7/Garrison | Lost 4 parts (2u2w) 16737 | -7/Garrison | Discovered exit to Factory (range 10) 16751 | -7/Garrison | Found embedded Infiltrators 16758 | -7/Garrison | Triggered checkpoint 16802 | -7/Garrison | Garrison Relay disabled 16920 | -7/Garrison | Build established: Scavenger-Skirmisher 16977 | -7/Garrison | Triggered checkpoint 17037 | -7/Garrison | Discovered exit to Factory (range 70) 17037 | -7/Garrison | Discovered exit to Factory (range 62) 17037 | -7/Garrison | Discovered exit to Factory (range 14) 17037 | -7/Garrison | Discovered new exit (range 20) 17104 | -7/Garrison | Garrison Relay disabled 17303 | -7/Garrison | Triggered checkpoint 17308 | -7/Garrison | Build established: Scavenger-Mutant 17311 | -7/Garrison | Triggered checkpoint 17399 | -7/Garrison | Expanded RIF knowledge: Structural Interface 17511 | -7/Garrison | Entered Factory 17511 | -6/Factory | Accompanied by 4 allies 17511 | -6/Factory | Evolved 2 slots: Power x1, Propulsion x1 17538 | -6/Factory | Garrison activated, responded to threat 17571 | -6/Factory | X0-1V1 activates XOMVISION 17580 | -6/Factory | Identified exit to Garrison 17580 | -6/Factory | Entered Garrison 17580 | -6/Garrison | Accompanied by 2 allies 17615 | -6/Garrison | Build established: Scavenger-Skirmisher 17632 | -6/Garrison | Triggered checkpoint 17634 | -6/Garrison | X0-1V1 rewrote RC-R9W(x) IFF filter 17696 | -6/Garrison | Garrison Relay disabled 17730 | -6/Garrison | Triggered checkpoint 17779 | -6/Garrison | Garrison Relay disabled 17800 | -6/Garrison | Triggered checkpoint 17830 | -6/Garrison | Discovered new exit (range 13) 17846 | -6/Garrison | Spotted Striker 17916 | -6/Garrison | System corruption reached 10% 17940 | -6/Garrison | Triggered checkpoint 17984 | -6/Garrison | Lost 3 parts (1p2w) 18078 | -6/Garrison | Garrison Relay disabled 18088 | -6/Garrison | Discovered new exit (range 10) 18098 | -6/Garrison | Identified exit to Factory 18130 | -6/Garrison | Triggered checkpoint 18166 | -6/Garrison | Garrison Relay disabled 18191 | -6/Garrison | System corruption reached 30% 18208 | -6/Garrison | Lost 3 parts (2n1u) 18276 | -6/Garrison | Triggered checkpoint 18315 | -6/Garrison | Lost 3 parts (3w) 18356 | -6/Garrison | Expanded RIF knowledge: Threat Obfuscation 18370 | -6/Garrison | Triggered checkpoint 18485 | -6/Garrison | Lost 6 parts (1p1n2u2w) 18523 | -6/Garrison | X0-1V1 mutated your Weapon slot to Utility slot 18541 | -6/Garrison | Entered Factory 18712 | -6/Factory | X0-1V1 foreshadows a heat wave 18775 | -6/Factory | Discovered new exit (range 9) 18779 | -6/Factory | Identified exit to Factory 18791 | -6/Factory | Ambient heat levels rising (+10) 18802 | -6/Factory | Identified exit to Garrison 18802 | -6/Factory | Entered Garrison 18833 | -6/Garrison | X0-1V1 revealed exit location to -5/Factory 18835 | -6/Garrison | X0-1V1 activates XOMVISION 18881 | -6/Garrison | Core integrity fell below 50% 18914 | -6/Garrison | X0-1V1 revealed exit location to -5/Factory 18930 | -6/Garrison | Lost 12 parts (1p5n4u2w) 18936 | -6/Garrison | Core integrity fell below 20% 18954 | -6/Garrison | Destroyed by P-60 Hacker with Shock Rifle Last Messages --------------- 18905_ Penetrated by Slug. 18907_ The unstable cave ceiling collapses. 18914_ X0-1V1: "I guarantee there's even more fun over that way." 18914_ EXIT=REVEALED: FACTORY 18923_ AZW81J 0&LZ%QYMQOFA HQQ9MQ 18929_ X0-1V1: "I found some blueprints, how convenient!" (1 emergency access location revealed). 18931_ X0-1V1's Piety Tracker destroyed. 18935_ Chain reaction triggered in Mic. Nuclear Core. Garrison Door activated. 18936_ RIF reveals location of phase wall. 18936_ P-60 Hacker destroyed. 18937_ Drone sends a signal. 18939_ RIF reveals location of phase wall. 18940_ System corrupted: Matter fused (-9). 18940_ RIF reveals location of phase wall. 18954_ X0-1V1 giggles madly! Map ----- +----------------------------------------------------+ | ?????????????????????????????????????????????????? | | ?????????????????????????????????????????????????? | | ?????????????????????????????????????????????????? | | ?????????????????????????????????????????????????? | | ?????????????????????